bitfinex/quotes_BTCUSD_20210101
["timestamp","ask_amount","ask_price","bid_price","bid_amount"]
[1609488937238,0.5164,28998.0,28987.0,0.0002]
[1609488937437,0.5164,28998.0,28987.0,0.05129388]
[1609488937940,0.5164,28998.0,28987.0,0.05149388]
[1609488940608,0.5164,28998.0,28987.0,0.0002]
[1609488940809,0.5164,28998.0,28986.0,0.5167]
[1609488942246,0.5164,28998.0,28986.0,0.5165]
[1609488942646,0.5164,28998.0,28987.0,0.13129388]
[1609488943247,0.5164,28998.0,28987.0,0.13149388]
[1609488943449,1.0,28997.0,28987.0,0.13149388]
[1609488943650,1.18936,28997.0,28987.0,0.13149388]
[1609488943848,1.0,28996.0,28987.0,0.05149388]
[1609488944353,0.51650001,28994.0,28987.0,0.05149388]
[1609488944772,0.51650001,28994.0,28987.0,0.0002]
[1609488944970,0.51650001,28994.0,28986.0,0.1452]
[1609488945876,0.51660001,28990.0,28986.0,0.0002]
[1609488946180,1.74835001,28990.0,28984.0,0.05149388]
[1609488946375,1.58857726,28989.0,28984.0,0.0002]
[1609488946577,0.28050914,28988.0,28983.0,0.0002]
[1609488946773,1.235,28987.0,28983.0,0.0002]
[1609488947070,0.365173,28985.0,28983.0,0.0002]
[1609488947275,0.51180914,28984.0,28982.0,0.0018]
[1609488947473,1.58094914,28984.0,28982.0,0.0018]
[1609488947674,2.68550914,28983.0,28982.0,0.0018]
[1609488947976,1.620173,28983.0,28982.0,0.0016]
[1609488948778,1.620173,28983.0,28982.0,0.10496724]
[1609488949574,1.620173,28983.0,28982.0,0.0016]
[1609488950174,1.255,28983.0,28982.0,0.0016]
[1609488950394,0.255,28983.0,28982.0,0.10597131]
[1609488951398,0.6772,28988.0,28982.0,0.10597131]
[1609488951597,0.68890001,28989.0,28982.0,0.10617131]
[1609488951802,0.51660001,28990.0,28982.0,0.10617131]
[1609488951997,0.51660001,28990.0,28982.0,0.0018]
[1609488952199,0.51660001,28990.0,28980.0,0.0014]
[1609488952399,0.28050914,28988.0,28979.0,0.0014]
[1609488952597,0.375,28987.0,28979.0,0.0014]
[1609488952801,0.375,28987.0,28977.0,0.97078]
[1609488953102,0.71660001,28990.0,28977.0,0.96578]
[1609488953297,1.2,28989.0,28977.0,0.96578]
[1609488953496,0.28050914,28988.0,28977.0,0.96578]
[1609488953699,0.28050914,28987.0,28977.0,0.96578]
[1609488954005,1.0,28986.0,28977.0,0.96578]
[1609488954238,0.18306812,28985.0,28977.0,0.96578]
[1609488954438,1.15,28985.0,28977.0,0.96578]
[1609488954833,1.0,28984.0,28977.0,0.96578]
[1609488955040,0.15,28985.0,28977.0,0.96578]
[1609488955237,0.23306812,28989.0,28977.0,0.96578]
[1609488955537,0.28050914,28988.0,28977.0,0.96578]
[1609488955735,0.03306812,28987.0,28977.0,0.96578]
[1609488956072,0.5167,28984.0,28977.0,0.96598]
[1609488960696,1.0,28983.0,28977.0,0.96598]
[1609488960896,0.225,28982.0,28977.0,0.96598]
[1609488961197,0.5167,28984.0,28977.0,0.96598]
[1609488961396,1.0,28983.0,28977.0,0.96598]
[1609488961707,0.69203,28984.0,28977.0,0.96598]
[1609488961900,0.69203,28984.0,28978.0,0.165]
[1609488962102,0.69203,28984.0,28978.0,0.1652]
[1609488962303,1.03306812,28983.0,28978.0,0.0002]
[1609488962509,1.0,28982.0,28978.0,0.0002]
[1609488962705,0.69203,28984.0,28976.0,0.0016]
[1609488962706,1.365173,28979.0,28976.0,0.0016]
[1609488963006,3.99568214,28977.0,28976.0,0.0016]
[1609488963206,5.02875026,28977.0,28976.0,0.0014]
[1609488963405,5.02875026,28977.0,28971.0,0.0006]
[1609488963710,0.28050914,28975.0,28970.0,0.0018]
[1609488964007,0.64568214,28972.0,28970.0,0.0018]
[1609488964307,2.43050914,28971.0,28961.0,0.5184]
[1609488964512,2.90050914,28970.0,28961.0,0.38409223]
[1609488964803,1.73050914,28970.0,28961.0,0.38409223]
[1609488965108,0.18769,28971.0,28961.0,0.38409223]
[1609488965534,0.18769,28971.0,28961.0,0.37909223]
[1609488966332,1.0,28970.0,28961.0,0.37909223]
[1609488967038,1.03306812,28970.0,28961.0,0.0002]
[1609488967336,0.01091353,28970.0,28959.0,0.7212]
[1609488967735,0.00591353,28970.0,28959.0,0.7212]
[1609488967933,0.00591353,28970.0,28959.0,0.7162]
[1609488968739,0.00591353,28970.0,28960.0,0.05129388]
[1609488969770,0.00591353,28970.0,28959.0,0.7162]
[1609488969966,0.00591353,28970.0,28961.0,0.00023237]
[1609488972807,0.03306812,28972.0,28961.0,0.00023237]
[1609488973003,0.5169,28973.0,28961.0,0.00023237]
[1609488973204,0.00076763,28961.0,28960.0,0.0002]
[1609488973408,0.00076763,28961.0,28960.0,1.695]
[1609488973603,0.00076763,28961.0,28960.0,7.92]
[1609488973908,0.00076763,28961.0,28960.0,8.0]
[1609488975332,0.00076763,28961.0,28960.0,6.55]
[1609488975930,7.63e-06,28961.0,28960.0,6.55]
[1609488976341,0.4584,28988.0,28961.0,0.0002]
[1609488976543,0.21791676,28992.0,28962.0,1.25]
[1609488976741,1.1267,28993.0,28964.0,0.04629388]
[1609488976941,1.34120088,28992.0,28965.0,0.04629388]
[1609488977238,1.33620088,28992.0,28965.0,0.04629388]
[1609488977436,0.33620088,28992.0,28967.0,1.0]
[1609488977637,1.0,28991.0,28979.0,0.5166]
[1609488977936,1.0,28991.0,28979.0,0.5168]
[1609488977937,1.14120088,28991.0,28979.0,0.5168]
[1609488978142,1.14120088,28991.0,28980.0,0.04629388]
[1609488978143,1.0,28987.0,28980.0,0.04629388]
[1609488978340,0.365173,28986.0,28980.0,0.10201828]
[1609488978536,1.24,28985.0,28980.0,0.14851216]
[1609488978743,1.0,28984.0,28980.0,0.0002]
[1609488979133,1.0,28984.0,28978.0,0.6888]
[1609488979540,1.0,28984.0,28978.0,0.10339186]
[1609488979739,0.37306812,28983.0,28978.0,0.10339186]
[1609488980040,3.72685,28981.0,28973.0,0.32615115]
[1609488980337,0.2,28979.0,28969.0,0.8611]
[1609488980552,1.0,28978.0,28969.0,0.8611]
[1609488980860,1.0,28978.0,28968.0,0.5169]
[1609488980861,1.2,28978.0,28968.0,0.5169]
[1609488981155,1.40306812,28977.0,28968.0,0.5169]
[1609488981354,1.2,28976.0,28968.0,0.5169]
[1609488981553,1.2,28975.0,28968.0,0.5169]
[1609488981756,1.14,28974.0,28968.0,0.5169]
[1609488981952,0.14,28974.0,28968.0,0.5169]
[1609488982153,0.21806812,28978.0,28968.0,0.5169]
[1609488982356,1.2,28977.0,28968.0,0.5169]
[1609488982556,1.38,28976.0,28968.0,0.5169]
[1609488982852,0.38,28976.0,28968.0,0.5169]
[1609488983355,0.2,28977.0,28968.0,0.5169]
[1609488983553,0.01806812,28979.0,28968.0,0.5169]
[1609488983554,0.21806812,28979.0,28968.0,0.5169]
[1609488983753,1.2,28978.0,28968.0,0.5169]
[1609488983955,1.01806812,28978.0,28968.0,0.5169]
[1609488984293,1.0,28978.0,28968.0,0.5169]
[1609488984422,0.95,28978.0,28968.0,0.5169]
[1609488984624,1.1516,28978.0,28968.0,0.5169]
[1609488984825,1.095,28977.0,28968.0,0.5169]
[1609488985026,0.96806812,28976.0,28968.0,0.5169]
[1609488985225,1.115,28975.0,28968.0,0.5171]
[1609488985423,0.95,28974.0,28968.0,0.5171]
[1609488987256,1.15,28974.0,28968.0,0.5171]
[1609488987458,1.12,28973.0,28968.0,0.0002]
[1609488987769,1.13918,28972.0,28963.0,0.0002]
[1609488987966,0.235,28971.0,28963.0,0.0002]
[1609488988162,0.235,28971.0,28961.0,0.517]
[1609488988357,0.95,28971.0,28961.0,0.517]
[1609488988563,0.28550914,28970.0,28961.0,0.48690435]
[1609488988766,0.72424812,28972.0,28961.0,0.48690435]
[1609488988767,0.28550914,28969.0,28961.0,0.48690435]
[1609488989160,0.0987,28970.0,28961.0,0.48690435]
[1609488990788,0.70618,28972.0,28961.0,0.48690435]
[1609488990984,0.95,28971.0,28962.0,0.00020331]
[1609488991187,1.21306812,28971.0,28962.0,0.00040331]
[1609488991496,0.01806812,28969.0,28962.0,0.00040331]
[1609488991688,0.01806812,28969.0,28962.0,0.00020331]
[1609488991689,0.95,28968.0,28962.0,0.00020331]
[1609488991887,1.085,28968.0,28962.0,0.00020331]
[1609488992094,0.28550914,28967.0,28962.0,0.00020331]
[1609488992288,0.135,28968.0,28962.0,0.00020331]
[1609488992495,0.01806812,28969.0,28962.0,0.00020331]
[1609488993989,0.96806812,28969.0,28962.0,0.00020331]
[1609488994192,0.28550914,28968.0,28962.0,0.00020331]
[1609488994787,0.01806812,28969.0,28962.0,0.00020331]
[1609488994991,0.28550914,28968.0,28962.0,0.00020331]
[1609488995189,0.28550914,28967.0,28962.0,0.00020331]
[1609488995392,0.30357726,28969.0,28962.0,0.00020331]
[1609488995637,1.23550914,28968.0,28962.0,0.00020331]
[1609488995833,0.16306812,28969.0,28962.0,0.00020331]
[1609488995834,1.44050914,28967.0,28962.0,0.00020331]
[1609488996139,0.28550914,28965.0,28962.0,0.00020331]
[1609488996738,0.2316,28966.0,28962.0,0.00020331]
[1609488997137,0.03797,28966.0,28962.0,0.00020331]
[1609488997638,1.17676,28965.0,28962.0,0.00020331]
[1609488997838,1.13,28964.0,28962.0,0.00020331]
[1609488998039,1.315173,28963.0,28962.0,0.00020331]
[1609488998443,1.33324112,28963.0,28962.0,0.00020331]
[1609488998642,1.33324112,28963.0,28962.0,3.31e-06]
[1609488998848,0.28550914,28961.0,28959.0,0.0004]
[1609488999043,1.67249203,28960.0,28959.0,0.0004]
[1609488999288,1.33324112,28960.0,28959.0,0.0004]
[1609488999596,4.00068214,28958.0,28957.0,0.001]
[1609488999894,5.31690236,28958.0,28957.0,0.001]
[1609489000285,6.21190236,28958.0,28957.0,0.001]
[1609489001886,2.51375026,28958.0,28957.0,0.001]
[1609489002283,2.49568214,28958.0,28957.0,0.001]
[1609489002485,1.60068214,28958.0,28957.0,0.001]
[1609489002887,0.65068214,28958.0,28957.0,0.001]
[1609489003090,0.365173,28958.0,28957.0,0.001]
[1609489003288,0.28550914,28961.0,28957.0,0.001]
[1609489003493,0.2,28960.0,28957.0,0.0012]
[1609489003795,0.365173,28960.0,28957.0,0.0012]
[1609489004691,0.28550914,28959.0,28957.0,0.0012]
[1609489004908,4.205173,28958.0,28957.0,0.001]
[1609489005307,4.83883424,28958.0,28957.0,0.001]
[1609489005603,4.90568214,28958.0,28957.0,0.001]
[1609489005906,4.90568214,28958.0,28956.0,0.002]
[1609489006110,4.90568214,28958.0,28955.0,0.2621]
[1609489006111,2.85541256,28957.0,28955.0,0.2621]
[1609489006311,2.85541256,28957.0,28955.0,0.2609]
[1609489006312,6.93487486,28956.0,28955.0,0.2609]
[1609489006509,7.32803956,28956.0,28955.0,0.0006]
[1609489006708,7.04253042,28956.0,28955.0,0.0006]
[1609489007308,7.32803956,28956.0,28955.0,0.0006]
[1609489007507,6.22803956,28956.0,28955.0,0.0006]
[1609489008209,2.06923775,28956.0,28955.0,0.0006]
[1609489008910,2.05116963,28956.0,28955.0,0.0006]
[1609489009108,1.15616963,28956.0,28955.0,0.0006]
[1609489009313,0.79188033,28956.0,28955.0,0.0006]
[1609489010115,1.30918033,28956.0,28955.0,0.0006]
[1609489010415,0.79188033,28956.0,28955.0,0.0006]
[1609489010633,0.14119819,28956.0,28955.0,0.0006]
[1609489010834,0.14119819,28957.0,28955.0,0.0006]
[1609489011038,0.14119819,28957.0,28955.0,0.0008]
[1609489011435,0.14119819,28957.0,28956.0,3.4]
[1609489011643,0.14119819,28957.0,28956.0,3.91]
[1609489011839,0.28550914,28963.0,28956.0,3.91]
[1609489011840,0.14119819,28963.0,28956.0,3.91]
[1609489012037,0.14119819,28963.0,28962.0,1.56773643]
[1609489012736,0.14119819,28963.0,28962.0,0.21773643]
[1609489012941,0.14119819,28970.0,28962.0,0.32150652]
[1609489013240,0.5171,28969.0,28962.0,0.32150652]
[1609489014032,0.65829819,28969.0,28962.0,0.32150652]
[1609489015900,1.60829819,28969.0,28962.0,0.21273643]
[1609489016100,0.96329819,28969.0,28962.0,0.21273643]
[1609489016336,0.42670733,28968.0,28962.0,0.21273643]
[1609489016537,0.14119819,28968.0,28962.0,0.21273643]
[1609489016834,0.5171,28969.0,28962.0,0.3150667]
[1609489017036,0.95,28968.0,28962.0,0.3150667]
[1609489017636,0.4171,28969.0,28962.0,0.3150667]
[1609489017938,0.365173,28968.0,28967.0,0.2309627]
[1609489018137,0.525173,28968.0,28967.0,0.2309627]
[1609489018337,0.16,28968.0,28967.0,0.2309627]
[1609489018542,0.28550914,28970.0,28967.0,0.2309627]
[1609489018741,0.365173,28969.0,28967.0,0.2309627]
[1609489019241,0.28550914,28970.0,28963.0,0.21172836]
[1609489019444,0.28550914,28969.0,28963.0,0.21172836]
[1609489019648,0.28550914,28970.0,28963.0,0.21172836]
[1609489022268,0.4267069,28970.0,28963.0,0.21172836]
[1609489023372,0.28550914,28970.0,28967.0,0.32903536]
[1609489023681,0.33,28970.0,28967.0,0.32903536]
[1609489023974,0.14119776,28972.0,28967.0,0.32903536]
[1609489024281,0.8692996,28973.0,28967.0,0.32903536]
[1609489024476,0.8692996,28973.0,28967.0,0.31403536]
[1609489025483,0.95,28972.0,28967.0,0.31403536]
[1609489025703,0.265,28971.0,28963.0,0.33703452]
[1609489025896,1.18085,28970.0,28959.0,0.30036189]
[1609489026100,1.15,28969.0,28960.0,0.9869]
[1609489026396,1.09119776,28969.0,28960.0,0.9869]
[1609489026596,1.09119776,28969.0,28960.0,1.0915506]
[1609489026805,1.09119776,28969.0,28961.0,0.19]
[1609489026997,0.14119776,28969.0,28962.0,1.0]
[1609489027396,0.34119776,28971.0,28961.0,0.0002]
[1609489027594,1.29119776,28971.0,28961.0,0.0002]
[1609489027899,0.66857726,28970.0,28960.0,0.1046506]
[1609489028092,1.61857726,28970.0,28960.0,0.1046506]
[1609489028294,0.28550914,28969.0,28961.0,0.05]
[1609489028594,0.6267069,28971.0,28963.0,0.31346976]
[1609489028799,0.14119776,28971.0,28964.0,0.05]
[1609489028998,0.14119776,28972.0,28964.0,0.05]
[1609489029193,0.14119776,28972.0,28963.0,0.31346976]
[1609489029930,0.14119776,28972.0,28963.0,0.36346976]
[1609489030128,0.14119776,28972.0,28967.0,0.5169]
[1609489033464,0.14119776,28972.0,28970.0,0.29013333]
[1609489036784,0.8692996,28973.0,28970.0,0.29013333]
[1609489037588,0.8692996,28973.0,28970.0,0.26513333]
[1609489038787,0.8692996,28973.0,28970.0,0.26013333]
[1609489039088,0.88021099,28973.0,28970.0,0.26013333]
[1609489039691,1.02140875,28973.0,28971.0,0.05]
[1609489040190,1.02140875,28973.0,28970.0,0.26013333]
[1609489040619,0.88021099,28973.0,28970.0,0.26013333]
[1609489041321,0.88021099,28973.0,28970.0,0.31013333]
[1609489041527,0.88021099,28973.0,28971.0,0.5169]
[1609489041725,1.02140875,28973.0,28971.0,0.5169]
[1609489042324,1.00140875,28973.0,28971.0,0.5169]
[1609489042626,1.00140875,28973.0,28971.0,0.75902]
[1609489042828,0.86021099,28973.0,28972.0,1.4]
[1609489043031,0.86021099,28973.0,28972.0,1.45]
[1609489044639,0.86021099,28973.0,28972.0,0.2]
[1609489044838,0.86021099,28973.0,28972.0,0.15]
[1609489045737,0.86021099,28973.0,28972.0,1.2]
[1609489046138,0.86021099,28973.0,28972.0,0.45]
[1609489046539,0.86021099,28973.0,28972.0,1.45]
[1609489046739,0.86021099,28973.0,28972.0,1.15]
[1609489046936,0.86021099,28973.0,28972.0,0.15]
[1609489047338,0.86021099,28973.0,28972.0,0.2]
[1609489047542,0.86021099,28973.0,28972.0,3.76233]
[1609489047745,0.86021099,28973.0,28972.0,4.41233]
[1609489047945,0.66476694,28973.0,28972.0,4.41233]
[1609489048160,0.66476694,28973.0,28972.0,4.45862388]
[1609489048559,0.61144699,28973.0,28972.0,5.45862388]
[1609489048764,0.14119776,28981.0,28980.0,3.65868587]
[1609489048973,0.14119776,28981.0,28980.0,4.47832587]
[1609489048974,7.76e-06,28981.0,28980.0,4.47832587]
[1609489049166,0.0002,28986.0,28985.0,3.60561368]
[1609489049362,0.0002,28986.0,28985.0,3.65561368]
[1609489049566,0.0002,28986.0,28985.0,4.22061368]
[1609489050168,0.10448517,28986.0,28985.0,4.22061368]
[1609489050460,0.10448517,28986.0,28985.0,0.87061368]
[1609489050663,0.10448517,28986.0,28985.0,0.30561368]
[1609489051164,0.10448517,28986.0,28985.0,0.40914618]
[1609489051565,0.10448517,28986.0,28985.0,1.65561368]
[1609489052466,0.10448517,28986.0,28985.0,1.90061368]
[1609489052665,0.10448517,28986.0,28985.0,2.00280066]
[1609489054484,0.10448517,28986.0,28985.0,2.45061368]
[1609489054885,0.10448517,28986.0,28985.0,1.90061368]
[1609489055286,0.10448517,28986.0,28985.0,2.00535714]
[1609489056487,0.10448517,28986.0,28985.0,1.90061368]
[1609489057192,0.0002,28986.0,28985.0,1.85061368]
[1609489057692,0.0002,28986.0,28985.0,1.90061368]
[1609489057887,0.0002,28986.0,28985.0,0.55061368]
[1609489058090,0.0002,28986.0,28985.0,0.30561368]
[1609489058490,0.0002,28986.0,28985.0,2.75561368]
[1609489059190,0.0002,28986.0,28985.0,0.30561368]
[1609489059446,0.0002,28986.0,28985.0,2.50561368]
[1609489059649,0.0002,28986.0,28985.0,2.88061368]
[1609489059953,0.0002,28986.0,28985.0,0.68061368]
[1609489060149,0.0002,28986.0,28985.0,0.25561368]
[1609489060550,0.0002,28986.0,28985.0,1.25561368]
[1609489060850,0.0002,28986.0,28985.0,0.25561368]
[1609489061050,0.0002,28986.0,28985.0,0.30561368]
[1609489061349,0.0002,28986.0,28985.0,1.70061368]
[1609489061650,0.0002,28986.0,28985.0,1.95561368]
[1609489061948,0.0002,28986.0,28985.0,0.55561368]
[1609489062152,0.0002,28986.0,28985.0,0.25061368]
[1609489062351,0.0002,28986.0,28985.0,1.30061368]
[1609489063686,0.0002,28986.0,28985.0,0.25061368]
[1609489064485,0.0002,28986.0,28985.0,2.50061368]
[1609489064685,0.0002,28986.0,28985.0,2.87561368]
[1609489065088,0.0002,28986.0,28985.0,2.92561368]
[1609489065385,0.0002,28986.0,28985.0,3.02561368]
[1609489065592,0.0002,28986.0,28985.0,0.72561368]
[1609489065789,0.0002,28986.0,28985.0,0.25061368]
[1609489066492,0.0002,28986.0,28985.0,1.35061368]
[1609489066889,0.0002,28986.0,28985.0,1.40061368]
[1609489067092,0.0002,28986.0,28985.0,0.40061368]
[1609489067290,0.0002,28986.0,28985.0,1.20061368]
[1609489067490,0.0002,28986.0,28985.0,0.53061368]
[1609489067689,0.0002,28986.0,28985.0,0.35061368]
[1609489069418,0.0002,28986.0,28985.0,1.50061368]
[1609489069712,0.0002,28986.0,28985.0,1.79061368]
[1609489070114,0.0002,28986.0,28985.0,0.64061368]
[1609489070317,0.0002,28986.0,28985.0,0.35061368]
[1609489071615,0.0002,28986.0,28985.0,0.25061368]
[1609489071616,0.01826812,28986.0,28985.0,0.25061368]
[1609489071918,0.01826812,28986.0,28980.0,0.29538297]
[1609489072119,0.54047113,28986.0,28985.0,1.8763937]
[1609489073018,0.54047113,28986.0,28985.0,2.0522137]
[1609489073411,0.54047113,28986.0,28985.0,1.82582]
[1609489073610,0.54047113,28986.0,28985.0,2.22082]
[1609489073914,0.54047113,28986.0,28985.0,2.17082]
[1609489074512,0.54047113,28986.0,28985.0,0.57082]
[1609489074713,0.55853925,28986.0,28984.0,0.6887]
[1609489074913,0.54047113,28986.0,28984.0,0.6887]
[1609489076515,0.54047113,28986.0,28984.0,0.7387]
[1609489076713,0.54047113,28986.0,28985.0,2.8]
[1609489076913,0.54047113,28986.0,28985.0,3.48912]
[1609489077612,0.54047113,28986.0,28985.0,3.56912]
[1609489077817,0.54047113,28986.0,28985.0,3.48912]
[1609489078814,0.54047113,28986.0,28985.0,4.48912]
[1609489079018,0.54047113,28986.0,28985.0,4.53541388]
[1609489079518,0.54047113,28986.0,28985.0,4.48912]
[1609489079719,0.54047113,28986.0,28985.0,1.78541388]
[1609489079916,0.54047113,28986.0,28985.0,1.63129388]
[1609489081247,0.54047113,28986.0,28985.0,1.62082953]
[1609489081747,0.54047113,28986.0,28985.0,1.57331052]
[1609489082051,0.53047113,28986.0,28985.0,1.52331052]
[1609489083449,0.53047113,28986.0,28985.0,1.51831052]
[1609489084848,0.54137751,28986.0,28985.0,1.51831052]
[1609489085049,0.53637751,28986.0,28985.0,1.51831052]
[1609489086269,0.53637751,28986.0,28985.0,1.0]
[1609489086670,0.53637751,28986.0,28985.0,1.04629388]
[1609489087369,0.53637751,28986.0,28985.0,1.14629388]
[1609489087570,0.53637751,28986.0,28985.0,1.04629388]
[1609489087875,0.55444563,28986.0,28985.0,0.04629388]
[1609489088171,0.53637751,28986.0,28985.0,0.14629388]
[1609489088373,0.55444563,28986.0,28985.0,0.14629388]
[1609489088675,0.53637751,28986.0,28985.0,0.26129388]
[1609489088874,0.55444563,28986.0,28985.0,0.26129388]
[1609489089078,0.55444563,28986.0,28985.0,0.215]
[1609489089472,0.55444563,28986.0,28984.0,0.6887]
[1609489090973,0.53637751,28986.0,28985.0,0.96386376]
[1609489091173,0.53637751,28986.0,28985.0,1.10886376]
[1609489092418,1.48637751,28986.0,28985.0,0.96386376]
[1609489092624,1.48637751,28986.0,28984.0,0.6887]
[1609489092625,1.78637751,28986.0,28979.0,0.6888]
[1609489092822,1.415,28985.0,28980.0,1.04629388]
[1609489093032,1.15,28984.0,28981.0,0.04629388]
[1609489093233,2.085813,28983.0,28981.0,0.04629388]
[1609489093418,0.95,28982.0,28981.0,0.04629388]
[1609489093722,0.1,28980.0,28975.0,0.5167]
[1609489093922,0.1,28980.0,28977.0,1.0]
[1609489095947,0.95,28979.0,28977.0,1.0]
[1609489096146,0.95,28979.0,28972.0,1.0002]
[1609489096445,1.05,28980.0,28973.0,0.04629388]
[1609489096748,0.95,28979.0,28974.0,0.1]
[1609489097142,0.95,28979.0,28975.0,1.0]
[1609489097344,1.05,28980.0,28975.0,1.0]
[1609489097744,0.1,28980.0,28975.0,1.0]
[1609489098444,1.05,28980.0,28975.0,1.0]
[1609489098647,0.1,28980.0,28976.0,0.185]
[1609489099252,1.13578328,28984.0,28977.0,0.1]
[1609489099452,0.95,28983.0,28977.0,0.1]
[1609489100048,1.15,28983.0,28977.0,0.1]
[1609489100247,0.95,28982.0,28977.0,0.1]
[1609489101100,0.95,28978.0,28975.0,1.0]
[1609489101302,0.365173,28975.0,28971.0,0.04649388]
[1609489101506,4.665173,28972.0,28963.0,0.2631]
[1609489101707,1.494893,28964.0,28963.0,0.2631]
[1609489102004,1.714893,28964.0,28963.0,0.2631]
[1609489102599,2.00040214,28964.0,28963.0,0.2631]
[1609489102797,1.714893,28964.0,28963.0,0.2631]
[1609489102998,2.00040214,28964.0,28963.0,0.2631]
[1609489103200,2.16040214,28964.0,28963.0,0.2631]
[1609489103803,1.874893,28964.0,28963.0,0.2631]
[1609489105296,1.864893,28964.0,28963.0,0.2631]
[1609489107100,0.924893,28964.0,28963.0,0.2631]
[1609489107299,0.764893,28964.0,28963.0,0.2631]
[1609489107502,0.585173,28964.0,28963.0,0.2631]
[1609489107801,0.365173,28964.0,28963.0,0.2631]
[1609489108934,1.305173,28964.0,28963.0,0.2631]
[1609489109332,1.500173,28964.0,28963.0,0.2631]
[1609489110434,1.51108771,28964.0,28963.0,0.2631]
[1609489111837,0.57108771,28964.0,28963.0,0.2631]
[1609489112233,0.01091471,28964.0,28963.0,0.2631]
[1609489114055,0.37608771,28964.0,28963.0,0.2631]
[1609489115160,0.01091471,28964.0,28963.0,0.2631]
[1609489116962,0.37608771,28964.0,28963.0,0.2631]
[1609489117735,0.01091471,28964.0,28963.0,0.2581]
[1609489117864,0.37608771,28964.0,28963.0,0.2581]
[1609489118068,0.01091471,28964.0,28957.0,0.0002]
[1609489118268,0.01091471,28964.0,28958.0,0.06]
[1609489118466,0.01091471,28964.0,28958.0,0.09346812]
[1609489118668,0.01091471,28964.0,28959.0,0.06]
[1609489119745,0.01091471,28964.0,28959.0,0.09366812]
[1609489119943,0.01091471,28964.0,28960.0,0.06]
[1609489120745,0.01091471,28964.0,28960.0,0.0602]
[1609489120948,0.01091471,28964.0,28961.0,0.06]
[1609489121495,0.01091471,28964.0,28961.0,0.0002]
[1609489121894,0.01091471,28964.0,28960.0,0.21213812]
[1609489122196,0.01091471,28964.0,28960.0,0.0002]
[1609489122396,0.01091471,28964.0,28959.0,0.0002]
[1609489122894,0.01091471,28964.0,28959.0,0.06]
[1609489123495,0.01091471,28964.0,28960.0,0.08]
[1609489123692,0.01091471,28964.0,28961.0,0.06]
[1609489123894,0.01091471,28964.0,28961.0,0.0602]
[1609489124403,0.01091471,28964.0,28961.0,0.0002]
[1609489124404,1.305173,28963.0,28961.0,0.0002]
[1609489124598,0.01091471,28964.0,28960.0,0.0002]
[1609489124599,1.305173,28962.0,28960.0,0.0002]
[1609489124798,2.950173,28961.0,28960.0,0.0002]
[1609489124998,1.305173,28961.0,28960.0,0.0002]
[1609489125242,0.28550914,28960.0,28956.0,0.0008]
[1609489125443,0.94,28960.0,28956.0,0.0008]
[1609489125636,0.560173,28959.0,28956.0,0.0008]
[1609489125842,0.365173,28957.0,28956.0,0.0008]
[1609489126040,0.365173,28957.0,28956.0,0.0006]
[1609489126041,1.305173,28957.0,28956.0,0.0006]
[1609489126638,0.365173,28957.0,28956.0,0.0006]
[1609489127239,2.305173,28957.0,28956.0,0.0006]
[1609489127438,2.690173,28957.0,28956.0,0.0006]
[1609489127838,1.750173,28957.0,28956.0,0.0006]
[1609489128047,2.690173,28957.0,28956.0,0.0006]
[1609489128646,6.710573,28957.0,28956.0,0.0006]
[1609489129069,7.34423424,28957.0,28956.0,0.0006]
[1609489129468,8.34423424,28957.0,28956.0,0.0006]
[1609489130367,7.79423424,28957.0,28956.0,0.0006]
[1609489130571,4.57550914,28956.0,28955.0,0.002]
[1609489130770,6.94068214,28956.0,28955.0,0.0018]
[1609489131768,6.00068214,28956.0,28955.0,0.0018]
[1609489131972,2.65068214,28956.0,28955.0,0.0018]
[1609489132172,3.59068214,28956.0,28955.0,0.0018]
[1609489132673,5.19068214,28956.0,28955.0,0.0018]
[1609489133072,3.59068214,28956.0,28955.0,0.0018]
[1609489133474,3.59068214,28956.0,28955.0,0.00200012]
[1609489133671,4.54068214,28956.0,28955.0,0.00200012]
[1609489133878,3.35,28955.0,28954.0,0.0016]
[1609489134074,7.39308214,28955.0,28954.0,0.0014]
[1609489134276,4.00068214,28954.0,28953.0,0.002]
[1609489134472,4.94068214,28954.0,28953.0,0.002]
[1609489134718,0.28550914,28952.0,28951.0,0.00073025]
[1609489135018,5.0590451,28952.0,28951.0,0.00073025]
[1609489135217,4.655173,28951.0,28950.0,2.45663855]
[1609489135513,4.94068214,28951.0,28950.0,2.45663855]
[1609489135715,5.18656214,28951.0,28950.0,2.45663855]
[1609489135912,4.2574816,28951.0,28950.0,2.45663855]
[1609489136114,2.9074816,28951.0,28950.0,2.45663855]
[1609489136322,3.9074816,28951.0,28950.0,2.45663855]
[1609489136530,3.8774816,28951.0,28950.0,2.45663855]
[1609489137329,2.6316016,28951.0,28950.0,2.45663855]
[1609489137532,4.4316016,28951.0,28950.0,2.44403855]
[1609489137730,5.3716016,28951.0,28950.0,2.44403855]
[1609489138030,2.5716016,28951.0,28950.0,2.44403855]
[1609489138233,3.1466016,28951.0,28950.0,2.43903855]
[1609489138464,2.1966016,28951.0,28950.0,2.43903855]
[1609489138664,2.7466016,28951.0,28950.0,2.43903855]
[1609489139067,3.6866016,28951.0,28950.0,2.43903855]
[1609489139566,6.4866016,28951.0,28950.0,2.42903855]
[1609489139766,6.2008909,28951.0,28950.0,2.42903855]
[1609489139964,5.8366016,28951.0,28950.0,2.42903855]
[1609489140267,6.2008909,28951.0,28950.0,2.42903855]
[1609489140465,3.6866016,28951.0,28950.0,2.42903855]
[1609489140871,3.1108909,28951.0,28950.0,2.41765938]
[1609489141366,3.5008909,28951.0,28950.0,2.41765938]
[1609489141568,4.5008909,28951.0,28950.0,2.41765938]
[1609489141770,3.1366016,28951.0,28950.0,2.41765938]
[1609489142569,5.1866016,28951.0,28950.0,2.41765938]
[1609489142772,5.5508909,28951.0,28950.0,2.41765938]
[1609489142970,3.5008909,28951.0,28950.0,2.41765938]
[1609489143572,4.7008909,28951.0,28950.0,2.41765938]
[1609489144000,5.1268399,28951.0,28950.0,2.41765938]
[1609489144696,6.1268399,28951.0,28950.0,2.41765938]